fUSD/lending_fUSD_20251026
["ID","MTS","AMOUNT","RATE_DAILY","PERIOD"]
[392433214,1761466240062,-500.0,0.00036566,30]
[392433215,1761466240072,-500.0,0.00036566,30]
[392433217,1761466240081,-56.03472822,0.00036566,30]
[392433220,1761466240114,-443.96527178,0.00036566,30]
[392433222,1761466240123,-500.0,0.00036566,30]
[392433223,1761466240132,-500.0,0.00036566,30]
[392433225,1761466240142,-500.0,0.00036566,30]
[392433227,1761466240151,-500.0,0.00036566,30]
[392433228,1761466240161,-500.0,0.00036566,30]
[392433230,1761466240171,-500.0,0.00036566,30]
[392433232,1761466240180,-240.69556616,0.00036567,15]
[392433234,1761466240190,-1000.0,0.00036567,2]
[392433235,1761466240199,-1000.0,0.00036567,2]
[392433237,1761466240208,-1000.0,0.00036567,2]
[392433239,1761466240218,-1000.0,0.00036567,2]
[392433240,1761466240227,-1000.0,0.00036567,2]
[392433242,1761466240237,-1000.0,0.00036567,2]
[392433244,1761466240246,-1000.0,0.00036567,2]
[392433245,1761466240255,-1000.0,0.00036567,2]
[392433247,1761466240265,-1000.0,0.00036567,2]
[392433249,1761466240274,-1000.0,0.00036567,2]
[392433251,1761466240283,-1000.0,0.00036567,2]
[392433252,1761466240292,-605.58247626,0.00036567,2]
[392433254,1761466240303,-394.41752374,0.00036567,2]
[392433256,1761466240312,-1000.0,0.00036567,2]
[392433257,1761466240321,-654.90416435,0.00036567,2]
[392433259,1761466240331,-225.80283692,0.00036567,9]
[392433261,1761466240342,-274.19716308,0.00036567,9]
[392433263,1761466240351,-320.52,0.00036567,7]
[392433264,1761466240361,-500.0,0.00036567,9]
[392433265,1761466240370,-22.28283692,0.00036567,9]
[392433319,1761466345639,-724.59200877,0.00033914,7]
[392433320,1761466345670,-168.0,0.00034463,2]
[392433321,1761466347406,255.46799123,0.00034094,7]
[392433324,1761467107748,49384.72989319,0.00015,2]
[392433326,1761467272127,44815.8413817,0.00018,2]
[392433335,1761467431943,-194.91,0.00028144,2]
[392433336,1761467431952,-231.52698493,0.00032,120]
[392433337,1761467431962,-150.0,0.00032893,4]
[392433338,1761467431971,-51.18815507,0.00032893,4]
[392433339,1761467431996,-98.81184493,0.00032893,4]
[392433340,1761467432006,-281.96593312,0.00032893,4]
[392433341,1761467432015,-150.0,0.00032893,4]
[392433342,1761467432024,-231.52698493,0.00033,120]
[392433343,1761467432033,-237.69523702,0.00033,2]
[392433344,1761467432045,-424.47038441,0.00033,2]
[392433345,1761467432157,-16837.56189204,0.00033,2]
[392433346,1761467432166,-151.0,0.00033,7]
[392433347,1761467432176,-166.66,0.00033315,30]
[392433348,1761467432185,-182.58026006,0.00033599,2]
[392433349,1761467432198,-260.81401186,0.00033699,7]
[392433350,1761467432207,-600.0,0.00033699,2]
[392433351,1761467432216,-9957.91025303,0.000337,2]
[392433352,1761467432228,-29254.87556955,0.000337,2]
[392433461,1761467437847,-500.0,0.00033699,7]
[392433462,1761467437856,-500.0,0.00033699,7]
[392433463,1761467437956,-500.0,0.00033699,7]
[392433464,1761467437965,-64.1761,0.00033699,7]
[392433465,1761467437977,-277.65228101,0.00033699,7]
[392433466,1761467437987,-10250.65462685,0.000337,2]
[392433467,1761467437996,-409.10077326,0.000339,2]
[392433468,1761467438005,-160.46146004,0.00034,2]
[392433469,1761467438015,-151.0,0.00034,7]
[392433470,1761467438024,-166.66,0.00034192,30]
[392433471,1761467438034,-2302.65886647,0.000343,3]
[392433472,1761467438043,-500.0,0.000344,2]
[392433473,1761467438052,-1703.12590222,0.0003449,2]
[392433474,1761467438061,-150.0,0.00034518,7]
[392433475,1761467438071,-11305.58094452,0.0003456,2]
[392433476,1761467438081,-155.253621,0.00034915,2]
[392433477,1761467438091,-609.17149946,0.00034923,7]
[392433478,1761467438100,-500.0,0.00034923,7]
[392433479,1761467438110,-500.0,0.00034923,7]
[392433480,1761467438120,-500.0,0.00034983,7]
[392433481,1761467438130,-155.253621,0.00035,30]
[392433482,1761467438139,-151.0,0.00035,7]
[392433483,1761467438149,-252.882,0.00035044,7]
[392433484,1761467438159,-166.66,0.00035069,30]
[392433485,1761467438168,-160.0,0.00035246,2]
[392433486,1761467438177,-150.48,0.00035276,2]
[392433487,1761467438187,-5000.0,0.0003528,2]
[392433488,1761467438197,-504.79464035,0.0003537,2]
[392433489,1761467438207,-331.15,0.00035387,30]
[392433490,1761467438218,-250.0,0.00035402,2]
[392433491,1761467438228,-1697.97,0.00035413,2]
[392433492,1761467438238,-1104.10099677,0.00035469,2]
[392433493,1761467438247,-1000.0,0.00035586,2]
[392433494,1761467438257,-203.08841514,0.00035616,2]
[392433495,1761467438266,-150.48,0.00035637,2]
[392433496,1761467438276,-155.253621,0.00035874,2]
[392433497,1761467438286,-155.253621,0.00035936,5]
[392433498,1761467438295,-166.66,0.00035945,30]
[392433499,1761467438304,-170.778983,0.0003595,30]
[392433500,1761467438315,-155.253621,0.0003595,30]
[392433501,1761467438324,-150.48,0.00035998,2]
[392433502,1761467438335,-623.41902,0.000362,2]
[392433503,1761467438344,-150.48,0.00036359,2]
[392433504,1761467438354,-2000.0,0.00036384,3]
[392433505,1761467438363,-1272.59129312,0.00036458,8]
[392433506,1761467438373,-210.57048061,0.00036458,2]
[392433507,1761467438382,-194.589,0.00036465,45]
[392433508,1761467438392,-525.72370974,0.00036468,2]
[392433509,1761467438401,-176.67777921,0.00036468,2]
[392433510,1761467438411,-11888.74994308,0.00036468,2]
[392433511,1761467438420,-210.57048057,0.00036504,2]
[392433512,1761467438429,-151.0,0.00036539,2]
[392433513,1761467438438,-167.21191613,0.00036539,2]
[392433514,1761467438449,-14135.4040059,0.00036548,4]
[392433515,1761467438458,-16893.0,0.00036548,120]
[392433516,1761467438467,-210.57048057,0.0003655,2]
[392433517,1761467438477,-500.0,0.00036556,2]
[392433518,1761467438486,-500.0,0.00036556,9]
[392433519,1761467438496,-200.45123533,0.00036556,9]
[392433520,1761467438507,-500.0,0.00036556,9]
[392433521,1761467438519,-477.71716308,0.00036557,9]
[392433522,1761467438528,-500.0,0.00036557,9]
[392433523,1761467438538,-500.0,0.00036557,9]
[392433524,1761467438548,-500.0,0.00036557,7]
[392433525,1761467438558,-500.0,0.00036557,9]
[392433526,1761467438568,-420.0,0.00036557,9]
[392433527,1761467438578,-513.62503419,0.00036557,9]
[392433528,1761467438589,-505.52675122,0.00036557,9]
[392433529,1761467438598,-500.0,0.00036557,9]
[392433530,1761467438607,-500.0,0.00036557,9]
[392433531,1761467438617,-550.29623631,0.00036557,9]
[392433532,1761467438627,-500.0,0.00036557,9]
[392433533,1761467438636,-639.77,0.00036557,9]
[392433534,1761467438646,-501.62644097,0.00036557,9]
[392433535,1761467438655,-505.41042179,0.00036557,9]
[392433536,1761467438665,-500.0,0.00036557,9]
[392433537,1761467438674,-502.95958756,0.00036557,9]
[392433538,1761467438684,-507.58828729,0.00036557,9]
[392433539,1761467438693,-500.0,0.00036557,9]
[392433540,1761467438703,-500.0,0.00036557,9]
[392433541,1761467438713,-504.2815456,0.00036557,9]
[392433542,1761467438723,-530.91508804,0.00036557,9]
[392433543,1761467438732,-500.0,0.00036557,9]
[392433544,1761467438742,-570.5,0.00036557,9]
[392433545,1761467438751,-503.1818786,0.00036557,9]
[392433546,1761467438760,-445.64404997,0.00036557,9]
[392433547,1761467438771,-528.19363999,0.00036557,9]
[392433548,1761467438781,-504.3819897,0.00036557,9]
[392433549,1761467438791,-504.47978658,0.00036557,9]
[392433550,1761467438800,-500.0,0.00036557,9]
[392433551,1761467438810,-500.0,0.00036557,9]
[392433552,1761467438819,-516.42129278,0.00036557,9]
[392433553,1761467438829,-512.78864123,0.00036557,9]
[392433554,1761467438838,-266.84440424,0.00036557,9]
[392433555,1761467438851,-236.86488466,0.00036557,9]
[392433556,1761467438860,-503.39530047,0.00036557,9]
[392433557,1761467438870,-501.30729092,0.00036557,9]
[392433558,1761467438879,-13.5254088,0.00036557,9]
[392433559,1761467438892,-491.93696534,0.00036557,9]
[392433560,1761467438901,-500.0,0.00036557,9]
[392433561,1761467438910,-503.66967002,0.00036557,9]
[392433562,1761467438919,-506.46911457,0.00036557,9]
[392433563,1761467438928,-154.80425007,0.00036557,9]
[392433564,1761467438939,-351.60898448,0.00036557,9]
[392433565,1761467438949,-500.0,0.00036557,9]
[392433566,1761467438958,-507.22896397,0.00036557,9]
[392433567,1761467438968,-502.60153598,0.00036557,9]
[392433568,1761467438977,-500.0,0.00036557,9]
[392433569,1761467438986,-268.27842584,0.00036557,9]
[392433570,1761467438997,-231.72157416,0.00036557,9]
[392433571,1761467439007,-500.0,0.00036557,9]
[392433572,1761467439016,-503.06409346,0.00036557,9]
[392433573,1761467439025,-541.20865496,0.00036557,9]
[392433574,1761467439036,-545.98,0.00036557,9]
[392433575,1761467439046,-500.0,0.00036557,9]
[392433576,1761467439056,-562.77376184,0.00036557,9]
[392433577,1761467439066,-500.0,0.00036557,9]
[392433578,1761467439076,-500.0,0.00036557,9]
[392433579,1761467439087,-503.58593713,0.00036557,9]
[392433580,1761467439096,-511.42009884,0.00036557,9]
[392433581,1761467439106,-504.41579248,0.00036557,9]
[392433582,1761467439116,-503.76566021,0.00036557,9]
[392433583,1761467439126,-515.40614073,0.00036557,9]
[392433584,1761467439136,-502.95437428,0.00036557,9]
[392433585,1761467439145,-507.46483602,0.00036557,9]
[392433586,1761467439155,-518.60346787,0.00036557,9]
[392433587,1761467439165,-503.71735193,0.00036557,9]
[392433588,1761467439175,-503.1422654,0.00036557,9]
[392433589,1761467439184,-407.59769278,0.00036557,9]
[392433590,1761467439200,-96.71688684,0.00036557,9]
[392433591,1761467439210,-502.43219146,0.00036557,9]
[392433592,1761467439219,-509.07844964,0.00036557,9]
[392433593,1761467439228,-513.1716152,0.00036557,9]
[392433594,1761467439238,-500.0,0.00036557,9]
[392433595,1761467439249,-565.80465325,0.00036557,9]
[392433596,1761467439262,-500.0,0.00036557,9]
[392433597,1761467439272,-534.43968439,0.00036557,9]
[392433598,1761467439281,-507.77751296,0.00036557,9]
[392433599,1761467439291,-502.94384567,0.00036557,9]
[392433600,1761467439300,-502.54673261,0.00036557,9]
[392433601,1761467439309,-502.27494076,0.00036557,9]
[392433602,1761467439319,-500.0,0.00036557,9]
[392433603,1761467439329,-500.0,0.00036557,9]
[392433604,1761467439338,-500.0,0.00036557,9]
[392433605,1761467439347,-503.01849048,0.00036557,9]
[392433606,1761467439357,-506.72657308,0.00036557,9]
[392433607,1761467439366,-501.68648217,0.00036557,9]
[392433608,1761467439375,-500.0,0.00036557,9]
[392433609,1761467439385,-585.16,0.00036557,9]
[392433610,1761467439394,-500.0,0.00036557,9]
[392433611,1761467439403,-567.63473996,0.00036557,9]
[392433612,1761467439413,-503.97414834,0.00036557,9]
[392433613,1761467439422,-500.0,0.00036557,9]
[392433614,1761467439432,-503.02904004,0.00036557,9]
[392433615,1761467439441,-503.24493013,0.00036557,9]
[392433616,1761467439451,-500.0,0.00036557,9]
[392433617,1761467439460,-525.46469712,0.00036557,9]
[392433618,1761467439469,-502.4159124,0.00036557,9]
[392433619,1761467439478,-546.7103371,0.00036557,9]
[392433620,1761467439490,-541.77157609,0.00036557,9]
[392433621,1761467439499,-500.0,0.00036557,9]
[392433622,1761467439512,-500.0,0.00036557,9]
[392433623,1761467439523,-500.0,0.00036557,2]
[392433624,1761467439533,-500.0,0.00036557,2]
[392433625,1761467439542,-500.0,0.00036557,9]
[392433626,1761467439553,-500.0,0.00036557,9]
[392433627,1761467439563,-500.0,0.00036557,9]
[392433628,1761467439573,-500.0,0.00036557,9]
[392433629,1761467439582,-759.93,0.00036557,2]
[392433630,1761467439593,-519.41777591,0.00036557,9]
[392433631,1761467439602,-508.47,0.00036557,9]
[392433632,1761467439611,-500.0,0.00036557,9]
[392433633,1761467439621,-500.0,0.00036557,9]
[392433634,1761467439630,-500.7984221,0.00036557,9]
[392433635,1761467439639,-500.0,0.00036557,2]
[392433636,1761467439649,-544.14619,0.00036557,9]
[392433638,1761467439658,-539.42544734,0.00036557,9]
[392433639,1761467439668,-532.85269363,0.00036557,9]
[392433640,1761467439677,-501.62057252,0.00036557,2]
[392433641,1761467439686,-300.0,0.00036557,2]
[392433642,1761467439695,-500.0,0.00036557,9]
[392433643,1761467439704,-500.0,0.00036557,9]
[392433644,1761467439714,-500.0,0.00036557,9]
[392433645,1761467439723,-177.24027426,0.00036558,2]
[392433646,1761467439732,-500.0,0.0003656,9]
[392433647,1761467439742,-500.0,0.0003656,9]
[392433648,1761467439753,-3091.631167,0.00036561,2]
[392433649,1761467439763,-12711.3132823,0.00036561,2]
[392433650,1761467439978,-170.778983,0.0003595,30]
[392433651,1761467439988,-4439.59872878,0.00036561,2]
[392433652,1761467440021,-4668.74622602,0.00036561,2]
[392433653,1761467440030,-500.0,0.00036566,15]
[392433654,1761467440040,-500.0,0.00036566,15]
[392433655,1761467440049,-500.0,0.00036566,15]
[392433656,1761467440058,-500.0,0.00036566,15]
[392433657,1761467440068,-500.0,0.00036566,15]
[392433658,1761467440220,-500.0,0.00036566,15]
[392433659,1761467440230,-500.0,0.00036566,15]
[392433660,1761467440241,-500.0,0.00036566,15]
[392433661,1761467440250,-393.79366822,0.00036566,15]
[392433662,1761467440260,-382.51508768,0.00036566,15]
[392433663,1761467440269,-220.01685815,0.00036567,15]
[392433664,1761467440278,-151.0,0.00036567,2]
[392433665,1761467440288,-502.42451465,0.00036567,9]
[392433666,1761467440297,-500.0,0.00036567,9]
[392433667,1761467440307,-501.18214364,0.00036567,9]
[392433668,1761467440318,-503.0915922,0.00036567,9]
[392433669,1761467440327,-406.86204637,0.00036567,9]
[392433670,1761467440337,-502.01080257,0.00036567,9]
[392433671,1761467440348,-300.60913547,0.00036567,9]
[392433672,1761467440358,-502.80727867,0.00036567,9]
[392433673,1761467440368,-501.6623063,0.00036567,9]
[392433674,1761467440378,-200.0,0.00036567,2]
[392433675,1761467440387,-500.0,0.00036567,9]
[392433676,1761467440396,-500.0,0.00036567,9]
[392433678,1761467440405,-334.6106892,0.00036567,7]
[392433680,1761467440414,-500.0,0.00036567,7]
[392433682,1761467440423,-500.0,0.00036567,9]
[392433683,1761467440432,-625.02,0.00036567,9]
[392433684,1761467440441,-500.0,0.00036567,9]
[392433685,1761467440451,-500.0,0.00036567,9]
[392433686,1761467440461,-200.0,0.00036567,2]
[392433687,1761467440470,-64426.56252761,0.00036567,32]
[392433688,1761467440481,-150.0,0.00036567,5]
[392433689,1761467440491,-104733.19095875,0.00036568,120]
[392433690,1761467440502,-15270.56043169,0.00036568,120]
[392433692,1761467440518,-689.42134885,0.00036568,120]
[392433700,1761467443421,-151.0,0.00036567,2]
[392433701,1761467443431,-69853.93416879,0.00036568,120]
[392433702,1761467443479,-0.91118592,0.00036568,120]
[392433705,1761467835759,190.0,0.000314,120]
[392433706,1761467915739,-240.02524774,0.00031401,2]
[392433707,1761467917865,-202.57951242,0.00031401,2]
[392433708,1761467920940,-393.9762775,0.00031401,2]
[392433709,1761467930716,-163.41896234,0.00031401,2]
[392433710,1761467930748,-7.34043913,0.00031675,2]
[392433711,1761467932877,-229.2345595,0.00031675,2]
[392433712,1761467934457,-250.22304369,0.00031675,2]
[392433713,1761468267244,221.85,0.00013699,2]
[392433714,1761468267460,221.85,0.00020187,2]
[392433716,1761468313579,250.0,0.00017,2]
[392433725,1761468632182,-221.85,0.00026676,2]
[392433726,1761468632193,-50.42030961,0.00031703,2]
[392433727,1761468632401,-101.02969039,0.00031703,2]
[392433728,1761468632416,-221.85,0.00033165,2]
[392433729,1761468632427,-152.0,0.00033391,3]
[392433730,1761468632436,-156.637284,0.00033883,2]
[392433731,1761468632447,-156.637284,0.0003405,30]
[392433732,1761468632457,-156.637284,0.00034405,5]
[392433733,1761468632467,-156.637284,0.00034867,2]
[392433734,1761468632477,-150.818735,0.00034867,2]
[392433735,1761468632487,-156.637284,0.00035,30]
[392433737,1761468632496,-152.0,0.00035139,4]
[392433739,1761468632506,-300.0,0.00035176,7]
[392433741,1761468632515,-476.61195222,0.00035247,2]
[392433743,1761468632524,-2506.97,0.00035268,2]
[392433745,1761468632533,-1600.0,0.00035294,3]
[392433746,1761468632542,-1600.0,0.00035294,3]
[392433747,1761468632551,-400.0,0.00035295,2]
[392433748,1761468632561,-4192.2,0.00035296,2]
[392433749,1761468632572,-158.7,0.00035296,2]
[392433750,1761468632582,-179.3,0.00035366,2]
[392433751,1761468632592,-1000.0,0.00035387,2]
[392433753,1761468632601,-828.07574758,0.00035469,2]
[392433755,1761468632610,-999.0,0.0003548,3]
[392433757,1761468632619,-196.43038495,0.00035616,2]
[392433759,1761468632628,-1392.96,0.00035709,2]
[392433760,1761468632637,-154.194046,0.0003585,2]
[392433761,1761468632647,-156.637284,0.0003585,2]
[392433762,1761468632656,-150.818735,0.0003585,2]
[392433763,1761468632664,-1600.0,0.0003585,2]
[392433764,1761468632673,-156.637284,0.00035936,5]
[392433765,1761468632682,-150.818735,0.00035936,5]
[392433766,1761468632691,-154.194046,0.0003595,30]
[392433767,1761468632704,-156.637284,0.0003595,30]
[392433768,1761468632716,-150.818735,0.0003595,30]
[392433769,1761468632724,-168.0,0.00036119,2]
[392433770,1761468632734,-168.0,0.00036424,2]
[392433771,1761468632743,-1175.3491266,0.00036457,2]
[392433772,1761468632752,-1175.34912659,0.00036458,2]
[392433773,1761468632761,-1175.34912659,0.00036459,2]
[392433774,1761468632770,-1187.7518737,0.0003646,8]
[392433775,1761468632779,-1175.34912659,0.00036461,2]
[392433776,1761468632788,-155.672,0.00036461,45]
[392433777,1761468632798,-1175.34912659,0.00036462,2]
[392433778,1761468632807,-1175.34912659,0.00036463,2]
[392433779,1761468632816,-1175.34912659,0.00036464,2]
[392433780,1761468632826,-799.61907591,0.00036466,2]
[392433781,1761468632842,-375.73005068,0.00036466,2]
[392433782,1761468632851,-289.15794932,0.00036467,2]
[392433785,1761468638114,-787.61,0.00036467,2]
[392433786,1761468638220,-98.58117727,0.00036467,2]
[392433787,1761468638231,-1671.5585,0.00036468,2]
[392433788,1761468638240,-350.48247316,0.00036468,2]
[392433789,1761468638250,-151.43809644,0.00036468,2]
[392433790,1761468638259,-1175.34912659,0.00036468,2]
[392433791,1761468638269,-500.0,0.00036473,5]
[392433792,1761468638279,-300.0,0.00036493,5]
[392433793,1761468638288,-300.0,0.00036493,5]
[392433794,1761468638298,-311.0,0.00036493,5]
[392433795,1761468638308,-160.86546302,0.00036499,7]
[392433796,1761468638318,-500.0,0.00036499,15]
[392433797,1761468638327,-245.30317506,0.00036499,15]
[392433799,1761468638337,-356.4777368,0.00036499,15]
[392433801,1761468638347,-367.87968715,0.00036499,15]
[392433803,1761468638355,-505.91664003,0.00036499,2]
[392433805,1761468638365,-558.99072846,0.00036499,15]
[392433807,1761468638374,-513.13554452,0.00036499,15]
[392433809,1761468638383,-2802.85460331,0.000365,10]
[392433811,1761468638395,-456.3300002,0.000365,10]
[392433814,1761468638410,-1134.22,0.000365,10]
[392433816,1761468638421,-9028.88218844,0.000365,10]
[392433830,1761468640584,-150.40748613,0.00036468,2]
[392433831,1761468640593,-188.76661057,0.000365,10]
[392433874,1761468646378,-500.0,0.00036499,15]
[392433876,1761468646389,-500.0,0.00036499,15]
[392433878,1761468646398,-500.0,0.00036499,15]
[392433880,1761468646407,-266.22662806,0.00036499,15]
[392433883,1761468646417,-500.0,0.00036499,15]
[392433885,1761468646427,-404.88898104,0.000365,10]
[392433887,1761468646439,-1282.09258775,0.000365,10]
[392433889,1761468646450,-1710.94890372,0.000365,10]
[392433891,1761468646461,-704.24598808,0.000365,10]
[392433893,1761468646472,-482.85713621,0.000365,10]
[392433896,1761468646483,-761.41983954,0.000365,10]
[392433899,1761468646494,-18173.43632044,0.000365,10]
[392433955,1761469108756,155.7820818,0.00036882,50]
[392433958,1761469466827,301.86629423,0.0002,2]
[392433959,1761469802211,550.43,0.0001755,2]
[392433960,1761469802398,550.43,0.00018473,2]
[392433961,1761469802596,550.43,0.00019397,2]
[392433962,1761469802786,550.43,0.00020321,2]
[392433963,1761469803186,550.43,0.00021244,2]
[392433964,1761469803383,550.43,0.00022168,2]
[392433975,1761469832453,-550.43,0.00023092,2]
[392433976,1761469832462,-550.43,0.00024015,2]
[392433977,1761469832475,-550.43,0.00024939,2]
[392433978,1761469832485,-501.36,0.00025,2]
[392433979,1761469832494,-550.43,0.00025863,2]
[392433980,1761469832504,-550.43,0.00026786,2]
[392433981,1761469832513,-500.0,0.00027,2]
[392433982,1761469832523,-550.43,0.0002771,2]
[392433983,1761469832532,-550.43,0.00028634,2]
[392433984,1761469832541,-500.0,0.00029,2]
[392433985,1761469832551,-550.43,0.00029557,2]
[392433986,1761469832561,-500.0,0.0003,2]
[392433987,1761469832570,-550.43,0.00030481,2]
[392433988,1761469832580,-550.43,0.00031405,2]
[392433989,1761469832590,-550.43,0.00032328,2]
[392433990,1761469832599,-157.43,0.0003271,2]
[392433991,1761469832609,-500.0,0.00033,9]
[392433992,1761469832619,-550.43,0.00033252,2]
[392433993,1761469832628,-500.0,0.00034,9]
[392433994,1761469832637,-550.43,0.00034176,2]
[392433995,1761469832647,-1000.0,0.000345,5]
[392433996,1761469832657,-550.43,0.00035099,2]
[392433998,1761469832670,-400.0,0.00035146,2]
[392434000,1761469832680,-400.0,0.00035146,3]
[392434002,1761469832689,-381.0,0.00035146,3]
[392434004,1761469832699,-1534.0,0.00035147,3]
[392434006,1761469832708,-209.102,0.00035148,2]
[392434007,1761469832718,-209.409,0.00035148,2]
[392434009,1761469832728,-250.0,0.00035148,2]
[392434011,1761469832737,-218.073,0.00035148,2]
[392434013,1761469832746,-286.682,0.00035148,2]
[392434015,1761469832756,-1276.0,0.00035176,2]
[392434017,1761469832765,-500.0,0.000352,5]
[392434019,1761469832774,-253.0,0.00035246,2]
[392434021,1761469832783,-258.78,0.00035298,2]
[392434023,1761469832792,-250.0,0.00035326,2]
[392434025,1761469832801,-150.0,0.00035383,2]
[392434027,1761469832810,-621.05681068,0.00035469,2]
[392434029,1761469832819,-157.97,0.00035489,120]
[392434030,1761469832828,-151.0,0.00035567,14]
[392434031,1761469832837,-9031.28,0.0003557,2]
[392434032,1761469832846,-150.0,0.00035588,2]
[392434033,1761469832855,-189.99063095,0.00035616,2]
[392434035,1761469832866,-150.40580558,0.00035678,2]
[392434038,1761469832877,-1051.45419442,0.00035678,2]
[392434040,1761469832887,-482.37671628,0.00035748,5]
[392434042,1761469832896,-1000.0,0.00036,20]
[392434044,1761469832905,-644.82401139,0.00036456,2]
[392434045,1761469832914,-150.40748612,0.00036458,2]
[392434047,1761469832924,-2716.42370689,0.00036458,2]
[392434049,1761469832934,-2716.42370686,0.00036459,2]
[392434051,1761469832943,-155.672,0.0003646,45]
[392434052,1761469832953,-2716.42370686,0.0003646,2]
[392434053,1761469832962,-2716.42370686,0.00036461,2]
[392434054,1761469832976,-233.6549821,0.00036468,2]
[392434055,1761469832985,-151.43809644,0.00036468,2]
[392434056,1761469832995,-3227.91164356,0.00036468,2]
[392434057,1761469833005,-843.7594097,0.00036489,2]
[392434058,1761469833014,-251.80295868,0.00036499,15]
[392434059,1761469833023,-151.0,0.00036499,2]
[392434060,1761469833033,-728.68537903,0.000365,32]
[392434061,1761469838377,-2716.42370686,0.00036462,2]
[392434062,1761469838387,-211.31421792,0.00036499,2]
[392434063,1761469838397,-3715.89932413,0.000365,32]
[392434064,1761469838408,-387.90781689,0.000365,32]
[392434084,1761469840424,-19512.26184512,0.000365,32]
[392434085,1761469840692,-691.10317124,0.000365,32]
[392434086,1761469840703,-4521.37273138,0.000365,32]
[392434094,1761469846577,-2716.42370686,0.00036464,2]
[392434095,1761469846587,-2716.42370686,0.00036465,2]
[392434096,1761469846597,-2656.05099602,0.000365,32]
[392434097,1761469846606,-38205.88417978,0.000365,10]
[392434098,1761469846685,-1019.94006091,0.000365,10]
[392434120,1761470708352,86160.92845256,0.00015,2]
[392434121,1761470708383,102995.93197776,0.00015,2]
[392434122,1761470725814,2378.42701158,0.000175,2]
[392434124,1761470755121,4991.00248433,0.00036882,120]
[392434125,1761470797953,200.0,0.000175,2]
[392434126,1761470823760,1486.76919812,0.000153,2]
[392434127,1761470840278,-243.11036039,0.000207,2]
[392434128,1761470847245,-302.1287721,0.000207,2]
[392434129,1761470849315,-259.41936587,0.000207,2]
[392434130,1761470852176,-166.06798402,0.000207,2]
[392434131,1761470855142,-275.18521214,0.000207,2]
[392434132,1761470857878,-165.8752723,0.000207,2]
[392434133,1761470859380,-319.17740393,0.000207,2]
[392434140,1761470918885,7250.59428908,0.0002,2]
[392434156,1761471031657,-81.41910042,0.000207,2]
[392434157,1761471031667,-2167.58089958,0.000215,2]
[392434158,1761471036204,-255.3655571,0.000215,2]
[392434159,1761471036215,-4370.7168275,0.000215,2]
[392434160,1761471036224,-488.99261227,0.000221,2]
[392434161,1761471036234,-237.60428509,0.0002211,2]
[392434162,1761471036245,-300.0,0.00022499,2]
[392434163,1761471036254,-35096.49888899,0.000225,2]
[392434165,1761471036263,-1615.94461361,0.0002277,2]
[392434166,1761471036272,-195.0,0.0002277,2]
[392434167,1761471036281,-1008.7772002,0.00024,2]
[392434168,1761471036290,-771.84467944,0.00024,2]
[392434169,1761471036300,-177.0,0.00024436,2]
[392434170,1761471036309,-172.0,0.00033,14]
[392434172,1761471036319,-152.0,0.00033682,3]
[392434173,1761471036328,-166.66,0.00033708,30]
[392434174,1761471036337,-172.0,0.00034521,30]
[392434175,1761471036347,-155.672,0.00034521,39]
[392434176,1761471036356,-1253.48,0.00034998,2]
[392434177,1761471036365,-1000.0,0.00035315,2]
[392434179,1761471036375,-158.7,0.00035346,2]
[392434181,1761471036384,-2964.87,0.00035412,2]
[392434183,1761471036394,-151.0,0.00035477,2]
[392434185,1761471036404,-151.0,0.00035477,2]
[392434186,1761471036413,-151.0,0.00035477,2]